fUST/lending_fUST_20250104
["ID","MTS","AMOUNT","RATE_DAILY","PERIOD"]
[347578950,1735923053021,-1192.39,0.00021643,3]
[347578952,1735923053030,-500.0,0.00021643,3]
[347578954,1735923053040,-796.71,0.00021643,3]
[347578956,1735923053050,-500.0,0.00021643,3]
[347578958,1735923053060,-1303.15,0.00021643,3]
[347578960,1735923053070,-500.0,0.00021643,2]
[347578962,1735923053079,-2604.47,0.00021643,3]
[347578964,1735923053090,-500.0,0.00021643,3]
[347578966,1735923053099,-500.0,0.00021643,3]
[347578968,1735923053109,-896.39,0.00021643,3]
[347578970,1735923053119,-2313.48,0.00021643,3]
[347578972,1735923053129,-893.02,0.00021643,3]
[347578974,1735923053138,-500.0,0.00021643,3]
[347578976,1735923053148,-38006.48,0.00021643,3]
[347578978,1735923053158,-500.0,0.00021643,3]
[347578980,1735923053170,-2264.35,0.00021643,3]
[347578982,1735923053180,-841.38,0.00021643,3]
[347578984,1735923053190,-713.68,0.00021643,3]
[347578986,1735923053199,-804.46,0.00021643,3]
[347578988,1735923053209,-618.06,0.00021643,3]
[347578990,1735923053219,-1096.09,0.00021643,3]
[347578992,1735923053228,-1334.71410486,0.00021645,2]
[347578994,1735923053238,-2840.47715702,0.00021659,2]
[347578996,1735923053248,-10287.84916258,0.000217,2]
[347578998,1735923053257,-170.517019,0.000217,2]
[347579000,1735923053270,-170.517019,0.000217,2]
[347579003,1735923053287,-2840.47715702,0.00021762,2]
[347579006,1735923053303,-1289.5567159,0.00021789,14]
[347579008,1735923053315,-7556.41,0.000218,2]
[347579010,1735923053329,-2840.47715702,0.00021866,2]
[347579013,1735923053345,-1334.71410486,0.00021885,2]
[347579015,1735923053358,-151.0,0.00021917,2]
[347579018,1735923053373,-500.0,0.00021917,3]
[347579020,1735923053386,-3000.0,0.00021917,30]
[347579023,1735923053402,-3000.0,0.00021917,30]
[347579025,1735923053415,-3000.0,0.00021917,30]
[347579028,1735923053429,-1610.73090021,0.00021917,30]
[347579030,1735923053441,-500.0,0.00021917,3]
[347579033,1735923053457,-508.1,0.00021917,3]
[347579035,1735923053470,-151.0,0.00021917,2]
[347579037,1735923053484,-510.98,0.00021917,3]
[347579040,1735923053496,-530.14,0.00021917,3]
[347579042,1735923053507,-151.0,0.00021917,2]
[347579044,1735923053521,-305.14,0.00021917,3]
[347579047,1735923053535,-500.0,0.00021917,3]
[347579049,1735923053549,-7779.87,0.00021917,3]
[347579052,1735923053564,-500.0,0.00021917,3]
[347579054,1735923053577,-567.74,0.00021917,3]
[347579057,1735923053592,-1032.67,0.00021917,3]
[347579059,1735923053602,-802.99,0.00021917,3]
[347579061,1735923053614,-225.320322,0.00021917,2]
[347579063,1735923053628,-225.320322,0.00021917,2]
[347579066,1735923053642,-803.66,0.00021917,3]
[347579068,1735923053655,-1306.93,0.00021917,3]
[347579070,1735923053667,-500.0,0.00021917,3]
[347579073,1735923053679,-500.0,0.00021917,3]
[347579075,1735923053692,-609.17,0.00021917,3]
[347579077,1735923053704,-500.0,0.00021917,3]
[347579079,1735923053715,-701.91,0.00021917,3]
[347579082,1735923053728,-500.0,0.00021917,3]
[347579084,1735923053740,-500.0,0.00021917,3]
[347579086,1735923053752,-1000.0,0.00021917,2]
[347579088,1735923053764,-1000.0,0.00021917,2]
[347579091,1735923053776,-500.0,0.00021917,3]
[347579093,1735923053788,-500.0,0.00021917,3]
[347579095,1735923053799,-603.56,0.00021917,3]
[347579097,1735923053811,-500.0,0.00021917,3]
[347579100,1735923053823,-586.72,0.00021917,3]
[347579102,1735923053835,-836.88,0.00021917,3]
[347579104,1735923053847,-500.0,0.00021917,3]
[347579106,1735923053860,-406.49620048,0.00021917,2]
[347579109,1735923053872,-912.77,0.00021917,3]
[347579111,1735923053883,-500.0,0.00021917,3]
[347579113,1735923053896,-500.0,0.00021917,3]
[347579115,1735923053908,-500.0,0.00021917,3]
[347579118,1735923053920,-821.93,0.00021917,2]
[347579120,1735923053933,-1156.79,0.00021917,3]
[347579122,1735923053944,-1234.93,0.00021917,3]
[347579124,1735923053956,-1031.15,0.00021917,3]
[347579127,1735923053968,-1871.57,0.00021917,3]
[347579129,1735923053980,-4093.75,0.00021917,3]
[347579131,1735923053992,-766.96,0.00021917,3]
[347579133,1735923054004,-500.0,0.00021917,3]
[347579136,1735923054016,-898.38,0.00021917,3]
[347579138,1735923054027,-3468.23,0.00021917,3]
[347579140,1735923054039,-500.0,0.00021917,3]
[347579142,1735923054051,-500.0,0.00021917,3]
[347579145,1735923054064,-731.0,0.00021917,3]
[347579147,1735923054076,-2125.62,0.00021917,3]
[347579149,1735923054090,-608.08,0.00021917,3]
[347579151,1735923054102,-1192.39,0.00021917,3]
[347579154,1735923054114,-500.0,0.00021917,3]
[347579156,1735923054126,-796.71,0.00021917,3]
[347579158,1735923054138,-500.0,0.00021917,3]
[347579160,1735923054150,-1303.15,0.00021917,3]
[347579162,1735923054164,-500.0,0.00021917,2]
[347579164,1735923054175,-2604.47,0.00021917,3]
[347579167,1735923054188,-500.0,0.00021917,3]
[347579169,1735923054200,-500.0,0.00021917,3]
[347579171,1735923054213,-896.39,0.00021917,3]
[347579174,1735923054225,-2313.48,0.00021917,3]
[347579176,1735923054239,-893.02,0.00021917,3]
[347579178,1735923054251,-649.27,0.00021917,3]
[347579180,1735923054263,-38006.48,0.00021917,3]
[347579183,1735923054275,-500.0,0.00021917,3]
[347579185,1735923054289,-2264.35,0.00021917,3]
[347579187,1735923054301,-841.38,0.00021917,3]
[347579189,1735923054313,-713.68,0.00021917,3]
[347579192,1735923054327,-804.46,0.00021917,3]
[347579194,1735923054340,-618.06,0.00021917,3]
[347579196,1735923054352,-1096.09,0.00021917,3]
[347579198,1735923054364,-160.0,0.00021948,4]
[347579200,1735923054376,-160.81655555,0.00021948,5]
[347579203,1735923054387,-2840.47715702,0.00021969,2]
[347579205,1735923054399,-141059.19700644,0.0002198,7]
[347579207,1735923054412,-218.508106,0.0002198,7]
[347579210,1735923054423,-151.0,0.0002198,7]
[347579212,1735923054436,-151.0,0.0002198,7]
[347579214,1735923054448,-170.517019,0.0002198,7]
[347579231,1735923054601,-170.517019,0.0002198,7]
[347579233,1735923054616,-285.128558,0.0002198,7]
[347579235,1735923054626,-285.128558,0.0002198,7]
[347579237,1735923054636,-500.0,0.00022,2]
[347579239,1735923054646,-500.0,0.00022,2]
[347579241,1735923054656,-500.0,0.00022,2]
[347579243,1735923054666,-500.0,0.00022,2]
[347579245,1735923054675,-500.0,0.00022,2]
[347579247,1735923054684,-500.0,0.00022,2]
[347579249,1735923054694,-741.73895921,0.00022,2]
[347579251,1735923054703,-500.0,0.00022,2]
[347579253,1735923054713,-500.0,0.00022,2]
[347579255,1735923054722,-504.73934472,0.00022,2]
[347579257,1735923054731,-500.0,0.00022,2]
[347579259,1735923054741,-500.0,0.00022,2]
[347579261,1735923054750,-500.0,0.00022,2]
[347579263,1735923054759,-500.0,0.00022,2]
[347579265,1735923054768,-500.0,0.00022,2]
[347579267,1735923054777,-500.0,0.00022,2]
[347579269,1735923054786,-500.0,0.00022,2]
[347579271,1735923054796,-500.0,0.00022,2]
[347579272,1735923054812,-608.85511994,0.00022,2]
[347579273,1735923054821,-500.0,0.00022,2]
[347579274,1735923054830,-500.0,0.00022,2]
[347579275,1735923054839,-500.0,0.00022,2]
[347579276,1735923054849,-500.0,0.00022,2]
[347579277,1735923054858,-500.0,0.00022,2]
[347579278,1735923054867,-600.12108233,0.00022,2]
[347579279,1735923054876,-20000.0,0.00022,2]
[347579280,1735923054886,-1000.0,0.00022,22]
[347579281,1735923054895,-10114.33457233,0.00022,14]
[347579282,1735923054904,-11841.83458482,0.00022,15]
[347579283,1735923054913,-161.69369733,0.00022,10]
[347579284,1735923054923,-904.17,0.00022,2]
[347579285,1735923054932,-1000.0,0.00022,2]
[347579286,1735923054941,-192.23,0.00022,2]
[347579287,1735923054950,-344.39447029,0.00022,2]
[347579288,1735923054960,-151.0,0.00022,2]
[347579289,1735923054969,-151.0,0.00022,2]
[347579290,1735923054979,-225.320322,0.00022,7]
[347579292,1735923054988,-225.320322,0.00022,7]
[347579294,1735923054997,-44364.22588493,0.0002201,16]
[347579296,1735923055006,-187.587171,0.00022055,2]
[347579298,1735923055016,-170.517019,0.00022072,7]
[347579300,1735923055025,-170.517019,0.00022072,7]
[347579302,1735923055034,-2840.47715702,0.00022072,2]
[347579304,1735923055043,-214.61470671,0.00022075,2]
[347579306,1735923055052,-1334.71410486,0.00022125,2]
[347579308,1735923055061,-238.025025,0.00022139,7]
[347579310,1735923055071,-151.0,0.00022139,7]
[347579312,1735923055080,-285.128558,0.00022139,7]
[347579314,1735923055089,-285.128558,0.00022139,7]
[347579316,1735923055098,-2840.47715702,0.00022176,2]
[347579318,1735923055107,-151.0,0.00022191,7]
[347579320,1735923055116,-500.0,0.00022191,3]
[347579322,1735923055125,-500.0,0.00022191,3]
[347579324,1735923055134,-508.1,0.00022191,3]
[347579326,1735923055145,-151.0,0.00022191,2]
[347579328,1735923055154,-510.98,0.00022191,3]
[347579330,1735923055168,-530.14,0.00022191,3]
[347579332,1735923055177,-151.0,0.00022191,2]
[347579334,1735923055187,-500.0,0.00022191,3]
[347579336,1735923055195,-7779.87,0.00022191,3]
[347579338,1735923055205,-500.0,0.00022191,3]
[347579340,1735923055215,-567.74,0.00022191,3]
[347579342,1735923055224,-1032.67,0.00022191,3]
[347579344,1735923055234,-802.99,0.00022191,3]
[347579346,1735923055244,-225.320322,0.00022191,7]
[347579348,1735923055255,-225.320322,0.00022191,7]
[347579350,1735923055264,-803.66,0.00022191,3]
[347579352,1735923055274,-1306.93,0.00022191,3]
[347579354,1735923055283,-500.0,0.00022191,3]
[347579356,1735923055292,-500.0,0.00022191,3]
[347579358,1735923055301,-609.17,0.00022191,3]
[347579360,1735923055310,-500.0,0.00022191,3]
[347579362,1735923055320,-701.91,0.00022191,3]
[347579364,1735923055329,-500.0,0.00022191,3]
[347579366,1735923055339,-500.0,0.00022191,3]
[347579368,1735923055348,-500.0,0.00022191,3]
[347579370,1735923055357,-500.0,0.00022191,3]
[347579372,1735923055367,-603.56,0.00022191,3]
[347579374,1735923055376,-500.0,0.00022191,3]
[347579376,1735923055386,-586.72,0.00022191,3]
[347579378,1735923055395,-836.88,0.00022191,3]
[347579380,1735923055404,-500.0,0.00022191,3]
[347579382,1735923055414,-912.77,0.00022191,3]
[347579384,1735923055423,-500.0,0.00022191,3]
[347579386,1735923055432,-500.0,0.00022191,3]
[347579388,1735923055442,-500.0,0.00022191,3]
[347579390,1735923055452,-821.93,0.00022191,2]
[347579392,1735923055461,-1156.79,0.00022191,3]
[347579393,1735923055471,-1234.93,0.00022191,3]
[347579395,1735923055481,-1031.15,0.00022191,3]
[347579397,1735923055490,-1871.57,0.00022191,3]
[347579399,1735923055499,-4093.75,0.00022191,3]
[347579401,1735923055508,-766.96,0.00022191,3]
[347579403,1735923055519,-500.0,0.00022191,3]
[347579406,1735923055528,-898.38,0.00022191,3]
[347579407,1735923055538,-3468.23,0.00022191,3]
[347579409,1735923055547,-500.0,0.00022191,3]
[347579412,1735923055557,-500.0,0.00022191,3]
[347579413,1735923055566,-731.0,0.00022191,3]
[347579416,1735923055575,-2125.62,0.00022191,3]
[347579418,1735923055585,-608.08,0.00022191,3]
[347579420,1735923055596,-1192.39,0.00022191,3]
[347579422,1735923055605,-500.0,0.00022191,3]
[347579424,1735923055614,-796.71,0.00022191,3]
[347579425,1735923055624,-500.0,0.00022191,3]
[347579428,1735923055634,-1303.15,0.00022191,3]
[347579430,1735923055643,-500.0,0.00022191,2]
[347579432,1735923055652,-2604.47,0.00022191,3]
[347579434,1735923055662,-500.0,0.00022191,3]
[347579436,1735923055671,-500.0,0.00022191,3]
[347579438,1735923055680,-896.39,0.00022191,3]
[347579440,1735923055689,-2313.48,0.00022191,3]
[347579442,1735923055698,-893.02,0.00022191,3]
[347579444,1735923055708,-38006.48,0.00022191,3]
[347579446,1735923055718,-500.0,0.00022191,3]
[347579448,1735923055727,-2264.35,0.00022191,3]
[347579449,1735923055737,-841.38,0.00022191,3]
[347579452,1735923055747,-713.68,0.00022191,3]
[347579454,1735923055756,-804.46,0.00022191,3]
[347579456,1735923055765,-618.06,0.00022191,3]
[347579457,1735923055775,-1096.09,0.00022191,3]
[347579460,1735923055784,-2840.47715702,0.00022279,2]
[347579461,1735923055793,-2000.0,0.000223,2]
[347579463,1735923055802,-588.0,0.000223,10]
[347579466,1735923055813,-1334.71410486,0.00022364,2]
[347579467,1735923055823,-2840.47715702,0.00022383,2]
[347579469,1735923055833,-10000.0,0.000224,3]
[347579471,1735923055843,-10318.67941492,0.00022411,2]
[347579473,1735923055852,-1378.46248178,0.00022447,24]
[347579475,1735923055862,-500.0,0.00022465,3]
[347579477,1735923055871,-500.0,0.00022465,3]
[347579479,1735923055880,-508.1,0.00022465,3]
[347579481,1735923055890,-510.98,0.00022465,3]
[347579483,1735923055899,-530.14,0.00022465,3]
[347579485,1735923055909,-500.0,0.00022465,3]
[347579487,1735923055918,-7779.87,0.00022465,3]
[347579489,1735923055927,-500.0,0.00022465,3]
[347579491,1735923055936,-567.74,0.00022465,3]
[347579493,1735923055946,-1032.67,0.00022465,3]
[347579495,1735923055955,-802.99,0.00022465,3]
[347579497,1735923055964,-803.66,0.00022465,3]
[347579499,1735923055974,-1306.93,0.00022465,3]
[347579501,1735923055983,-500.0,0.00022465,3]
[347579503,1735923055993,-500.0,0.00022465,3]
[347579505,1735923056002,-609.17,0.00022465,3]
[347579507,1735923056012,-500.0,0.00022465,3]
[347579509,1735923056021,-701.91,0.00022465,3]
[347579511,1735923056031,-500.0,0.00022465,3]
[347579513,1735923056040,-191.8175773,0.00022465,3]
[347579515,1735923056050,-170.517019,0.00022465,7]
[347579517,1735923056060,-500.0,0.00022465,3]
[347579520,1735923056070,-170.517019,0.00022465,7]
[347579522,1735923056080,-500.0,0.00022465,3]
[347579523,1735923056089,-603.56,0.00022465,3]
[347579526,1735923056099,-500.0,0.00022465,3]
[347579527,1735923056108,-586.72,0.00022465,3]
[347579530,1735923056118,-836.88,0.00022465,3]
[347579531,1735923056128,-500.0,0.00022465,3]
[347579533,1735923056137,-912.77,0.00022465,3]
[347579535,1735923056147,-500.0,0.00022465,3]
[347579537,1735923056156,-500.0,0.00022465,3]
[347579539,1735923056170,-500.0,0.00022465,3]
[347579542,1735923056180,-821.93,0.00022465,2]
[347579544,1735923056190,-1156.79,0.00022465,3]
[347579546,1735923056200,-1234.93,0.00022465,3]
[347579548,1735923056210,-1031.15,0.00022465,3]
[347579550,1735923056220,-1871.57,0.00022465,3]
[347579552,1735923056229,-4093.75,0.00022465,3]
[347579554,1735923056239,-766.96,0.00022465,3]
[347579556,1735923056250,-500.0,0.00022465,3]
[347579557,1735923056259,-898.38,0.00022465,3]
[347579560,1735923056268,-3468.23,0.00022465,3]
[347579561,1735923056278,-500.0,0.00022465,3]
[347579563,1735923056287,-500.0,0.00022465,3]
[347579565,1735923056297,-731.0,0.00022465,3]
[347579567,1735923056306,-2125.62,0.00022465,3]
[347579570,1735923056317,-608.08,0.00022465,3]
[347579572,1735923056327,-1192.39,0.00022465,3]
[347579574,1735923056336,-500.0,0.00022465,3]
[347579575,1735923056347,-796.71,0.00022465,3]
[347579577,1735923056356,-605.64017698,0.00022465,3]
[347579579,1735923056366,-1303.15,0.00022465,3]
[347579581,1735923056375,-500.0,0.00022465,2]
[347579583,1735923056384,-2604.47,0.00022465,3]
[347579586,1735923056394,-500.0,0.00022465,3]
[347579588,1735923056403,-500.0,0.00022465,3]
[347579590,1735923056414,-896.39,0.00022465,3]
[347579592,1735923056423,-2313.48,0.00022465,3]
[347579594,1735923056432,-893.02,0.00022465,3]
[347579596,1735923056442,-38006.48,0.00022465,3]
[347579598,1735923056452,-500.0,0.00022465,3]
[347579600,1735923056462,-2264.35,0.00022465,3]
[347579602,1735923056471,-713.68,0.00022465,3]
[347579604,1735923056481,-841.38,0.00022465,3]
[347579606,1735923056490,-804.46,0.00022465,3]
[347579608,1735923056500,-618.06,0.00022465,3]
[347579610,1735923056509,-1096.09,0.00022465,3]
[347579612,1735923056518,-23385.98299009,0.00022477,14]
[347579614,1735923056528,-151.0,0.00022477,7]
[347579616,1735923056537,-285.128558,0.00022477,7]
[347579618,1735923056547,-285.128558,0.00022477,7]
[347579620,1735923056556,-2840.47715702,0.00022486,2]
[347579622,1735923056565,-587.0,0.00022573,2]
[347579624,1735923056574,-26255.3087352,0.0002258,60]
[347579626,1735923056585,-151.0,0.0002258,2]
[347579628,1735923056598,-151.0,0.0002258,2]
[347579630,1735923056608,-225.320322,0.0002258,7]
[347579632,1735923056618,-225.320322,0.0002258,7]
[347579634,1735923056628,-2840.47715702,0.0002259,2]
[347579636,1735923056637,-2000.0,0.000226,2]
[347579638,1735923056646,-2000.0,0.000226,2]
[347579640,1735923056656,-500.49034638,0.000226,2]
[347579642,1735923056666,-1334.71410486,0.00022604,2]
[347579644,1735923056675,-214.61470671,0.00022604,2]
[347579646,1735923056684,-187120.15882246,0.0002267,30]
[347579660,1735923057062,-500.0,0.00019178,2]
[347579662,1735923057073,-2817.84390498,0.00021643,3]
[347579665,1735923057085,-2985.87609502,0.00021643,3]
[347579667,1735923057098,-5803.72,0.00021917,3]
[347579669,1735923057107,-5803.72,0.00022191,3]
[347579671,1735923057117,-12879.76064239,0.0002267,30]
[347579673,1735923057126,-151.0,0.0002267,7]
[347579675,1735923057136,-151.0,0.0002267,7]
[347579677,1735923057145,-170.517019,0.0002267,7]
[347579679,1735923057154,-170.517019,0.0002267,7]
[347579681,1735923057168,-285.128558,0.0002267,7]
[347579682,1735923057178,-285.128558,0.0002267,7]
[347579683,1735923057187,-2840.47715702,0.00022693,2]
[347579684,1735923057197,-151.0,0.00022694,2]
[347579685,1735923057207,-151.0,0.00022694,2]
[347579686,1735923057216,-151.0,0.00022694,2]
[347579687,1735923057225,-151.0,0.00022694,2]
[347579689,1735923057235,-225.59872,0.00022694,2]
[347579691,1735923057244,-151.0,0.00022694,7]
[347579693,1735923057254,-151.0,0.00022694,7]
[347579695,1735923057263,-151.0,0.00022694,7]
[347579697,1735923057272,-225.320322,0.00022694,7]
[347579699,1735923057282,-225.320322,0.00022694,7]
[347579701,1735923057291,-225.320322,0.00022694,7]
[347579703,1735923057301,-225.320322,0.00022694,7]
[347579705,1735923057310,-225.320322,0.00022694,7]
[347579707,1735923057319,-225.320326,0.00022694,7]
[347579709,1735923057329,-285.128558,0.00022694,7]
[347579712,1735923057339,-285.128558,0.00022694,7]
[347579714,1735923057349,-285.128558,0.00022694,7]
[347579716,1735923057358,-285.128558,0.00022694,7]
[347579718,1735923057367,-285.128558,0.00022694,7]
[347579720,1735923057377,-285.128554,0.00022694,7]
[347579722,1735923057386,-2565.48122448,0.00022699,2]
[347579724,1735923057395,-170.517019,0.00022704,7]
[347579726,1735923057404,-170.517023,0.00022704,7]
[347579728,1735923057413,-289103.17990503,0.00022704,10]
[347579730,1735923057425,-331628.79974345,0.00022704,10]
[347579732,1735923057435,-6073.70091391,0.00022704,10]
[347579741,1735923057505,-463.60001,0.00022704,10]
[347579747,1735923057550,-500.0,0.00019178,2]
[347579749,1735923057560,-5803.72,0.00022465,3]
[347579751,1735923057569,-24614.5729712,0.00022704,10]
[347579753,1735923057580,-3106.49270905,0.00022704,10]
[347579755,1735923057598,-69395.19286446,0.00022704,10]
[347579758,1735923057607,-25484.1603724,0.00022704,10]
[347579778,1735923057834,-500.30370383,0.00019178,2]
[347579780,1735923057844,-9629.07358452,0.00022704,10]
[347579781,1735923057860,-85022.29633524,0.00022704,10]
[347579797,1735923058232,-150.12,0.00021369,3]
[347579799,1735923058243,-2674.39864691,0.00022704,10]
[347579856,1735923125588,500.0,0.00017772,2]
[347579861,1735923873025,176.642263,0.00013973,2]
[347579924,1735924232066,-500.0,0.00016344,2]
[347579926,1735924232075,-500.0,0.00016509,2]
[347579928,1735924232085,-500.0,0.00016676,2]
[347579931,1735924232095,-924.350413,0.0001786,2]
[347579933,1735924232104,-1338.80026585,0.00017956,2]
[347579935,1735924232115,-1419.2285228,0.0001818,2]
[347579936,1735924232125,-500.0,0.00018868,2]
[347579939,1735924232134,-229.23620296,0.000189,2]
[347579940,1735924232145,-154.8915759,0.00018986,2]
[347579943,1735924232154,-500.0,0.00019,2]
[347579945,1735924232164,-601.0,0.00019,2]
[347579947,1735924232173,-302.90913937,0.00019,2]
[347579949,1735924232182,-302.60665373,0.00019,2]
[347579951,1735924232192,-300.0,0.00019176,2]
[347579953,1735924232201,-189.146,0.00019177,2]
[347579955,1735924232211,-187.76270674,0.00019177,2]
[347579957,1735924232221,-499.0,0.00019177,2]
[347579960,1735924232230,-500.0,0.00019177,5]
[347579963,1735924232240,-630.80077109,0.00019177,2]
[347579966,1735924232249,-500.0,0.00019177,2]
[347579969,1735924232259,-283.10808477,0.00019177,2]
[347579972,1735924232268,-500.0,0.00019177,2]
[347579975,1735924232278,-509.9907207,0.00019177,2]
[347579978,1735924232288,-500.0,0.00019178,2]
[347579981,1735924232297,-503.3161859,0.00019178,2]
[347579984,1735924232306,-500.24047302,0.00019178,2]
[347579987,1735924232316,-320.79362068,0.00019178,2]
[347579990,1735924232325,-500.81546027,0.00019178,2]
[347579992,1735924232335,-500.61682899,0.00019178,2]
[347579994,1735924232344,-558.8257489,0.00019178,2]
[347579996,1735924232353,-500.0,0.00019178,2]
[347579998,1735924232364,-500.0,0.00019178,2]
[347580000,1735924232373,-500.0,0.00019178,2]
[347580002,1735924232382,-500.0,0.00019178,2]
[347580004,1735924232392,-500.0,0.00019178,2]
[347580006,1735924232402,-500.0,0.00019178,2]
[347580008,1735924232411,-500.0,0.00019178,2]
[347580010,1735924232421,-500.0,0.00019178,2]
[347580012,1735924232430,-500.0,0.00019178,2]
[347580014,1735924232439,-500.52227974,0.00019178,2]
[347580016,1735924232448,-504.10355821,0.00019178,2]
[347580018,1735924232458,-500.0,0.00019178,2]
[347580020,1735924232467,-500.0,0.00019178,2]
[347580022,1735924232477,-500.0,0.00019178,2]
[347580024,1735924232486,-503.49821531,0.00019178,2]
[347580026,1735924232495,-500.0,0.00019178,2]
[347580028,1735924232507,-500.47102507,0.00019178,2]
[347580030,1735924232517,-500.0,0.00019178,2]
[347580032,1735924232526,-500.0,0.00019178,2]
[347580034,1735924232536,-417.55789877,0.00019178,2]
[347580036,1735924232547,-500.0,0.00019178,2]
[347580038,1735924232556,-500.0,0.00019178,2]
[347580040,1735924232566,-336.70964578,0.00019178,2]
[347580062,1735924232773,-163.29035422,0.00019178,2]
[347580064,1735924232782,-501.78866846,0.00019178,2]
[347580066,1735924232792,-500.0,0.00019178,2]
[347580068,1735924232802,-500.0,0.00019178,2]
[347580070,1735924232813,-500.61405082,0.00019178,2]
[347580072,1735924232823,-500.0,0.00019178,2]
[347580074,1735924232832,-500.0,0.00019178,2]
[347580077,1735924232842,-500.0,0.00019178,2]
[347580078,1735924232852,-500.0,0.00019178,2]
[347580081,1735924232862,-506.25800879,0.00019178,2]
[347580083,1735924232871,-500.0,0.00019178,2]
[347580085,1735924232881,-505.70545399,0.00019178,2]
[347580086,1735924232890,-503.47725766,0.00019178,2]
[347580088,1735924232900,-500.0,0.00019178,2]
[347580091,1735924232910,-504.62763379,0.00019178,2]
[347580093,1735924232919,-500.0,0.00019178,2]
[347580095,1735924232928,-500.0,0.00019178,2]
[347580097,1735924232938,-500.0,0.00019178,2]
[347580099,1735924232947,-500.0,0.00019178,2]
[347580101,1735924232957,-500.0,0.00019178,2]
[347580103,1735924232966,-500.0,0.00019178,2]
[347580105,1735924232975,-500.0,0.00019178,2]
[347580107,1735924232984,-602.29,0.00019178,2]
[347580109,1735924232994,-500.0,0.00019178,2]
[347580111,1735924233004,-500.0,0.00019178,2]
[347580113,1735924233013,-500.0,0.00019178,2]
[347580115,1735924233023,-504.24198776,0.00019178,2]
[347580117,1735924233032,-500.0,0.00019178,2]
[347580119,1735924233042,-500.0,0.00019178,2]
[347580121,1735924233051,-500.0,0.00019178,2]
[347580123,1735924233062,-500.0,0.00019178,2]
[347580125,1735924233072,-500.0,0.00019178,2]
[347580127,1735924233083,-500.0,0.00019178,2]
[347580129,1735924233093,-500.0,0.00019178,2]
[347580131,1735924233102,-500.0,0.00019178,2]
[347580133,1735924233112,-500.0,0.00019178,2]
[347580135,1735924233122,-500.0,0.00019178,2]
[347580137,1735924233131,-500.0,0.00019178,2]
[347580139,1735924233141,-596.71581186,0.00019178,2]
[347580141,1735924233151,-102.93965545,0.00019178,2]
[347580230,1735924237841,-397.06034455,0.00019178,2]
[347580232,1735924237850,-280.34985059,0.00019178,2]
[347580234,1735924237862,-219.65014941,0.00019178,2]
[347580236,1735924237874,-500.0,0.00019178,2]
[347580238,1735924237883,-500.0,0.00019178,2]
[347580240,1735924237892,-500.0,0.00019178,2]
[347580242,1735924237902,-500.0,0.00019178,2]
[347580244,1735924237911,-567.18,0.00019178,2]
[347580246,1735924237920,-500.0,0.00019178,2]
[347580248,1735924237929,-500.0,0.00019178,2]
[347580250,1735924237939,-500.0,0.00019178,2]
[347580252,1735924237948,-511.26,0.00019178,2]
[347580254,1735924237958,-500.0,0.00019178,2]
[347580256,1735924237967,-500.0,0.00019178,2]
[347580258,1735924237977,-558.19453967,0.00019178,2]
[347580260,1735924237986,-500.0,0.00019178,2]
[347580262,1735924237995,-376.90376697,0.00019178,2]